lending/lending_fUSD_20241103
["ID","MTS","AMOUNT","RATE_DAILY","PERIOD"]
[341213467,1730652639328,-503.77911314,0.00037999,2]
[341213468,1730652639337,-518.55452446,0.00037999,2]
[341213469,1730652639346,-526.66418514,0.00037999,2]
[341213470,1730652639356,-503.88092962,0.00037999,2]
[341213471,1730652639365,-505.91555911,0.00037999,2]
[341213472,1730652639373,-603.27369996,0.00037999,2]
[341213473,1730652639382,-532.97570881,0.00037999,2]
[341213474,1730652639391,-486.18139598,0.00037999,2]
[341213475,1730652639400,-500.0,0.00037999,2]
[341213476,1730652639409,-516.50188352,0.00037999,2]
[341213477,1730652639418,-500.0,0.00037999,2]
[341213478,1730652639430,-309.40863574,0.00037999,2]
[341213479,1730652639439,-525.41606958,0.00037999,2]
[341213480,1730652639448,-580.50848859,0.00037999,2]
[341213481,1730652639457,-520.35064999,0.00037999,2]
[341213482,1730652639466,-500.0,0.00037999,2]
[341213483,1730652639475,-248.8523669,0.00037999,2]
[341213484,1730652639484,-504.11862795,0.00037999,2]
[341213485,1730652639493,-500.0,0.00037999,2]
[341213486,1730652639505,-528.29827965,0.00037999,2]
[341213487,1730652639514,-500.0,0.00037999,2]
[341213488,1730652639523,-513.48985798,0.00037999,2]
[341213489,1730652639533,-500.0,0.00037999,2]
[341213490,1730652639543,-545.13987753,0.00037999,2]
[341213491,1730652639553,-500.0,0.00037999,2]
[341213492,1730652639563,-504.84815438,0.00037999,2]
[341213493,1730652639573,-535.27340613,0.00037999,2]
[341213494,1730652639582,-500.0,0.00037999,2]
[341213495,1730652639592,-505.48732606,0.00037999,2]
[341213496,1730652639602,-500.0,0.00037999,2]
[341213497,1730652639611,-504.59088942,0.00037999,2]
[341213498,1730652639622,-512.05402273,0.00037999,2]
[341213499,1730652639631,-514.67001516,0.00037999,2]
[341213500,1730652639641,-500.0,0.00037999,2]
[341213501,1730652639651,-500.0,0.00037999,2]
[341213502,1730652639660,-500.0,0.00037999,2]
[341213503,1730652639670,-282.65212066,0.00037999,2]
[341213504,1730652639679,-500.0,0.00037999,2]
[341213505,1730652639688,-525.59488331,0.00037999,2]
[341213506,1730652639697,-500.0,0.00037999,2]
[341213507,1730652639707,-525.48756821,0.00037999,2]
[341213508,1730652639716,-500.0,0.00037999,2]
[341213509,1730652639725,-550.11791957,0.00037999,2]
[341213510,1730652639734,-500.0,0.00037999,2]
[341213511,1730652639743,-507.36702521,0.00037999,2]
[341213512,1730652639753,-514.06878181,0.00037999,2]
[341213513,1730652639761,-500.0,0.00037999,2]
[341213514,1730652639770,-539.65887741,0.00037999,2]
[341213515,1730652639779,-505.47618125,0.00037999,2]
[341213516,1730652639788,-500.0,0.00037999,2]
[341213517,1730652639797,-604.19763619,0.00037999,2]
[341213518,1730652639806,-500.0,0.00037999,2]
[341213519,1730652639815,-500.0,0.00037999,2]
[341213520,1730652639823,-511.43562326,0.00037999,2]
[341213521,1730652639832,-637.0255645,0.00037999,2]
[341213522,1730652639841,-500.0,0.00037999,2]
[341213523,1730652639849,-559.38394912,0.00037999,2]
[341213524,1730652639859,-499.74542852,0.00037999,2]
[341213525,1730652639868,-500.0,0.00037999,2]
[341213526,1730652639877,-500.0,0.00037999,2]
[341213527,1730652639886,-465.01017081,0.00037999,2]
[341213528,1730652639895,-500.0,0.00037999,2]
[341213529,1730652639904,-511.21676104,0.00037999,2]
[341213530,1730652639913,-559.71591678,0.00037999,2]
[341213531,1730652639922,-561.89962817,0.00037999,2]
[341213532,1730652639931,-216.79181405,0.00037999,2]
[341213533,1730652639940,-500.0,0.00037999,2]
[341213534,1730652639949,-500.0,0.00037999,2]
[341213535,1730652639958,-594.92620686,0.00037999,2]
[341213536,1730652639967,-573.55592694,0.00037999,2]
[341213537,1730652639977,-500.0,0.00037999,2]
[341213538,1730652639986,-512.39238633,0.00037999,2]
[341213539,1730652639995,-500.0,0.00037999,2]
[341213540,1730652640005,-500.0,0.00037999,2]
[341213541,1730652640014,-518.35700529,0.00037999,2]
[341213542,1730652640023,-500.0,0.00037999,2]
[341213543,1730652640033,-500.0,0.00037999,2]
[341213544,1730652640042,-500.0,0.00037999,2]
[341213545,1730652640051,-500.0,0.00037999,2]
[341213546,1730652640060,-627.56919786,0.00037999,2]
[341213547,1730652640071,-520.52351633,0.00037999,2]
[341213548,1730652640080,-500.0,0.00037999,2]
[341213549,1730652640089,-512.9589448,0.00037999,2]
[341213550,1730652640099,-500.0,0.00037999,2]
[341213551,1730652640108,-500.0,0.00037999,2]
[341213552,1730652640118,-500.0,0.00037999,2]
[341213553,1730652640127,-549.80706385,0.00037999,2]
[341213554,1730652640137,-511.84787693,0.00037999,2]
[341213555,1730652640146,-500.0,0.00037999,2]
[341213556,1730652640156,-500.0,0.00037999,2]
[341213557,1730652640166,-544.09223696,0.00037999,2]
[341213558,1730652640175,-500.0,0.00037999,2]
[341213560,1730652640185,-500.0,0.00037999,2]
[341213561,1730652640194,-30.16535233,0.00037999,2]
[341213562,1730652640209,-469.83464767,0.00037999,2]
[341213563,1730652640218,-289.94277655,0.00037999,2]
[341213564,1730652640504,-151.124,0.00026646,2]
[341213565,1730652640514,-210.05722345,0.00037999,2]
[341213566,1730652640524,-180.05635837,0.00037999,2]
[341213567,1730652640535,-341.78757861,0.00037999,2]
[341213568,1730652640544,-500.0,0.00037999,2]
[341213569,1730652640554,-500.0,0.00037999,2]
[341213570,1730652640563,-515.800662,0.00037999,2]
[341213571,1730652640573,-261.02029057,0.00037999,2]
[341213613,1730652643544,-238.97970943,0.00037999,2]
[341213614,1730652643554,-88.05350752,0.00037999,2]
[341213615,1730652643601,-440.040139,0.00037999,2]
[341213616,1730652643611,-543.20057629,0.00037999,2]
[341213617,1730652643620,-286.15350866,0.00037999,2]
[341213618,1730652643629,-290.42746391,0.00037999,2]
[341213619,1730652643639,-507.81623494,0.00037999,2]
[341213620,1730652643648,-500.0,0.00037999,2]
[341213621,1730652643658,-548.44416058,0.00037999,2]
[341213622,1730652643667,-535.14440433,0.00037999,2]
[341213623,1730652643677,-266.48727476,0.00037999,2]
[341213624,1730652643686,-1649.59734968,0.00037999,2]
[341213667,1730652646515,-1376.19,0.000379,2]
[341213668,1730652646525,-9977.62265032,0.00037999,2]
[341213669,1730652646535,-500.0,0.00037999,2]
[341213670,1730652646544,-500.0,0.00037999,2]
[341213671,1730652646553,-500.0,0.00037999,2]
[341213672,1730652646562,-575.9687378,0.00037999,2]
[341213673,1730652646572,-541.49018498,0.00037999,2]
[341213674,1730652646581,-500.0,0.00037999,2]
[341213675,1730652646590,-554.98619036,0.00037999,2]
[341213676,1730652646599,-537.43758993,0.00037999,2]
[341213677,1730652646612,-500.0,0.00037999,2]
[341213678,1730652646621,-560.96759626,0.00037999,2]
[341213679,1730652646629,-781.4,0.00037999,2]
[341213680,1730652646639,-500.0,0.00037999,2]
[341213681,1730652646649,-542.33013847,0.00037999,2]
[341213682,1730652646658,-586.41238435,0.00037999,2]
[341213683,1730652646667,-512.69067505,0.00037999,2]
[341213684,1730652646676,-500.0,0.00037999,2]
[341213685,1730652646685,-548.88185471,0.00037999,2]
[341213686,1730652646694,-500.0,0.00037999,2]
[341213688,1730652646703,-599.10300336,0.00037999,2]
[341213690,1730652646711,-500.0,0.00037999,2]
[341213691,1730652646720,-531.39054326,0.00037999,2]
[341213692,1730652646729,-500.0,0.00037999,2]
[341213693,1730652646738,-504.97909502,0.00037999,2]
[341213694,1730652646747,-533.15223718,0.00037999,2]
[341213695,1730652646758,-500.0,0.00037999,2]
[341213696,1730652646767,-500.0,0.00037999,2]
[341213697,1730652646776,-500.0,0.00037999,2]
[341213698,1730652646785,-500.0,0.00037999,2]
[341213699,1730652646794,-500.0,0.00037999,2]
[341213700,1730652646803,-1007.26,0.00037999,2]
[341213701,1730652646813,-500.0,0.00037999,2]
[341213702,1730652646822,-500.0,0.00037999,2]
[341213703,1730652646832,-500.0,0.00037999,2]
[341213704,1730652646841,-531.22591033,0.00037999,2]
[341213705,1730652646850,-512.76674658,0.00037999,2]
[341213706,1730652646859,-500.0,0.00037999,2]
[341213707,1730652646868,-519.34271939,0.00037999,2]
[341213708,1730652646877,-557.92886508,0.00037999,2]
[341213709,1730652646887,-515.2188813,0.00037999,2]
[341213710,1730652646896,-501.50715749,0.00037999,2]
[341213711,1730652646906,-500.0,0.00037999,2]
[341213712,1730652646915,-500.0,0.00037999,2]
[341213713,1730652646925,-554.24008143,0.00037999,2]
[341213714,1730652646934,-523.1649206,0.00037999,2]
[341213715,1730652646944,-510.78129671,0.00037999,2]
[341213716,1730652646953,-500.0,0.00037999,2]
[341213717,1730652646963,-515.4875481,0.00037999,2]
[341213718,1730652646972,-500.0,0.00037999,2]
[341213719,1730652646982,-556.84252146,0.00037999,2]
[341213723,1730652808516,156.77,0.00015342,2]
[341213725,1730653302773,156.55,0.00015342,2]
[341213727,1730653306075,222.73125,0.00015013,2]
[341213780,1730653801639,157.42,0.00015342,2]
[341213796,1730653831506,-300.0,0.00019725,2]
[341213797,1730653831516,-250.0,0.00021,2]
[341213798,1730653831526,-218.36,0.000216,2]
[341213799,1730653831535,-1957.0,0.000223,2]
[341213800,1730653831545,-300.0,0.00023,2]
[341213801,1730653831554,-468.928,0.00026646,2]
[341213802,1730653831563,-800.0,0.00026986,120]
[341213803,1730653831573,-563.29152354,0.000282,7]
[341213804,1730653831780,-91.78847646,0.000282,7]
[341213805,1730653831790,-235.65925,0.0003,2]
[341213806,1730653831800,-235.65925,0.0003,2]
[341213807,1730653831809,-487.61,0.0003389,2]
[341213808,1730653831818,-151.19,0.000347,2]
[341213809,1730653831828,-249.12,0.00034967,2]
[341213810,1730653831838,-249.12,0.00035529,2]
[341213811,1730653831848,-150.0,0.00035612,7]
[341213812,1730653831857,-153.0,0.00035616,2]
[341213813,1730653831866,-153.0,0.00035616,2]
[341213814,1730653831876,-153.0,0.00035616,2]
[341213815,1730653831885,-153.0,0.00035616,2]
[341213816,1730653831895,-153.0,0.00035616,2]
[341213818,1730653831905,-153.0,0.00035616,2]
[341213820,1730653831914,-153.0,0.00035616,2]
[341213822,1730653831923,-153.0,0.00035616,2]
[341213824,1730653831932,-153.0,0.00035616,2]
[341213826,1730653831942,-153.0,0.00035616,2]
[341213828,1730653831953,-923.26008442,0.00035711,2]
[341213830,1730653831965,-4752.30991558,0.00035711,2]
[341213832,1730653831977,-200.0,0.00035792,2]
[341213834,1730653831986,-545.9,0.000358,14]
[341213835,1730653831995,-11172.72912221,0.0003582,2]
[341213837,1730653832006,-602.05,0.0003582,2]
[341213839,1730653832017,-4899.51502544,0.0003582,2]
[341213854,1730653837604,-624.95907672,0.0003582,2]
[341213855,1730653837771,-742.77677563,0.0003582,2]
[341213856,1730653837780,-168.44,0.00035834,2]
[341213857,1730653837789,-177.66,0.00035985,120]
[341213858,1730653837803,-82.75890645,0.00036091,2]
[341213875,1730653839536,-166.36109355,0.00036091,2]
[341213876,1730653839547,-302.56626126,0.00036154,2]
[341213877,1730653839559,-185.04373874,0.00036154,2]
[341213878,1730653839569,-1000.0,0.00036263,2]
[341213879,1730653839578,-168.88,0.00036449,2]
[341213880,1730653839588,-249.12,0.00036652,2]
[341213881,1730653839597,-249.12,0.00037214,2]
[341213882,1730653839608,-161.99,0.00037474,120]
[341213883,1730653839617,-265.73095188,0.000376,13]
[341213884,1730653839630,-34.26904812,0.000376,13]
[341213885,1730653839640,-1807.32870263,0.0003762,2]
[341213886,1730653839650,-235.65925,0.0003764,2]
[341213887,1730653839660,-700.0,0.000377,13]
[341213888,1730653839670,-36.50872905,0.00037776,2]
[341213889,1730653839682,-212.61127095,0.00037776,2]
[341213890,1730653839691,-1100.0,0.000378,13]
[341213891,1730653839701,-839.81312908,0.00037897,15]
[341213892,1730653839711,-161.01786207,0.00037898,2]
[341213893,1730653839721,-977.6207,0.00037898,2]
[341213894,1730653839731,-5597.60702311,0.00037898,2]
[341213895,1730653839746,-801.81421915,0.00037898,2]
[341213896,1730653839757,-1157.46453,0.00037898,2]
[341213897,1730653839829,-293.34224,0.00037898,2]
[341213903,1730653842881,-2103.67335846,0.00037898,2]
[341213904,1730653843049,-22122.93102668,0.00037898,2]
[341213919,1730653845742,-349.63162248,0.00037898,2]
[341213922,1730654448768,157.23,0.00015342,2]
[341213923,1730654451315,189.79125,0.00015213,2]
[341213924,1730654624364,150.0,0.00015137,2]
[341213925,1730654708023,738228.01447822,0.00016,2]
[341213926,1730654730026,1600.0,0.000101,2]
[341213943,1730654756321,26407.96652991,6.94e-05,2]
[341213953,1730654833228,712.04957007,0.0001598,2]
[341213958,1730654845319,5078.77771225,0.0001305,2]
[341213972,1730654904662,292.16260873,0.000125,2]
[341213973,1730654916206,366.72476236,0.000129,2]
[341213974,1730654922012,212.60686008,0.0001,2]
[341213986,1730655030609,154.44,0.00015342,2]
[341213994,1730655031646,-200.0,0.00017,2]
[341213995,1730655031656,-1041.09534175,0.00018,2]
[341213996,1730655031665,-250.0,0.00021,2]
[341213997,1730655031675,-150.0,0.000216,2]
[341213998,1730655031686,-388.0,0.000223,2]
[341213999,1730655031695,-300.0,0.00023,2]
[341214000,1730655031705,-229.28,0.000282,7]
[341214001,1730655031714,-500.0,0.00028848,2]
[341214002,1730655031723,-166.08,0.00035341,2]
[341214003,1730655031733,-85.09316325,0.00035616,2]
[341214010,1730655037732,-541.49,0.00033859,2]
[341214011,1730655037741,-67.90683675,0.00035616,2]
[341214012,1730655037752,-153.0,0.00035616,2]
[341214013,1730655037762,-153.0,0.00035616,2]
[341214014,1730655037772,-153.0,0.00035616,2]
[341214015,1730655037782,-153.0,0.00035616,2]
[341214016,1730655037791,-153.0,0.00035616,2]
[341214017,1730655037800,-153.0,0.00035616,2]
[341214018,1730655037810,-153.0,0.00035616,2]
[341214019,1730655037819,-153.0,0.00035616,2]
[341214020,1730655037828,-191.06,0.000359,14]
[341214021,1730655037837,-100.00716556,0.00036103,2]
[341214042,1730655039747,-88.34283444,0.00036103,2]
[341214043,1730655039756,-541.49,0.00036123,2]
[341214044,1730655039766,-168.44,0.00036144,2]
[341214045,1730655039776,-161.99,0.0003619,120]
[341214046,1730655039785,-150.0,0.00036221,2]
[341214047,1730655039794,-250.0,0.00036252,2]
[341214048,1730655039803,-616.34,0.00036411,2]
[341214049,1730655039813,-1000.0,0.00036472,2]
[341214050,1730655039822,-177.66,0.00036506,120]
[341214051,1730655039831,-176.15,0.00036627,2]
[341214052,1730655039840,-200.0,0.00036679,2]
[341214053,1730655039850,-166.08,0.00037328,2]
[341214054,1730655039859,-2426.4107737,0.00037421,30]
[341214055,1730655039868,-200.0,0.000376,13]
[341214056,1730655039878,-500.0,0.000377,13]
[341214057,1730655039889,-413.73454414,0.00037792,2]
[341214058,1730655039898,-1278.5104,0.00037798,2]
[341214059,1730655039907,-500.0,0.00037798,2]
[341214060,1730655039916,-293.887,0.00037798,2]
[341214061,1730655039926,-876.9373,0.00037798,2]
[341214062,1730655039940,-755.8318161,0.00037798,15]
[341214063,1730655039949,-1138.2053,0.00037798,2]
[341214064,1730655039959,-2345.9422,0.00037798,2]
[341214065,1730655039968,-9309.0258,0.00037798,2]
[341214066,1730655039977,-767.678,0.00037799,49]
[341214067,1730655039986,-28960.1736855,0.000378,2]
[341214068,1730655039996,-800.0,0.000378,13]
[341214069,1730655040005,-151.30053413,0.00037896,11]
[341214070,1730655040015,-500.0,0.00037896,2]
[341214071,1730655040025,-500.0,0.00037896,2]
[341214072,1730655040034,-500.0,0.00037896,2]
[341214073,1730655040043,-505.0873326,0.00037896,2]
[341214074,1730655040052,-500.0,0.00037896,2]
[341214075,1730655040062,-787.91,0.00037896,2]
[341214076,1730655040071,-500.0,0.00037896,2]
[341214077,1730655040080,-500.0,0.00037896,2]
[341214078,1730655040090,-500.0,0.00037896,2]
[341214079,1730655040099,-500.0,0.00037896,2]
[341214080,1730655040108,-788.52,0.00037896,2]
[341214081,1730655040118,-647.6415824,0.00037896,2]
[341214082,1730655040127,-500.0,0.00037896,2]
[341214084,1730655040136,-629.1591191,0.00037896,2]
[341214085,1730655040145,-500.0,0.00037896,2]
[341214086,1730655040154,-500.0,0.00037896,2]
[341214087,1730655040163,-500.0,0.00037896,2]
[341214088,1730655040172,-602.86681128,0.00037896,2]
[341214089,1730655040181,-500.0,0.00037896,2]
[341214090,1730655040203,-500.0,0.00037896,2]
[341214091,1730655040212,-197.95834797,0.00037896,2]
[341214092,1730655040221,-500.0,0.00037896,2]
[341214093,1730655040234,-500.0,0.00037896,2]
[341214094,1730655040244,-160.43,0.00037897,2]
[341214095,1730655040253,-500.0,0.00037897,2]
[341214096,1730655040262,-500.0,0.00037897,2]
[341214097,1730655040271,-500.0,0.00037897,2]
[341214098,1730655040281,-500.0,0.00037897,2]
[341214099,1730655040290,-500.0,0.00037897,2]
[341214100,1730655040299,-500.0,0.00037897,2]
[341214101,1730655040309,-500.0,0.00037897,2]
[341214102,1730655040318,-500.0,0.00037897,2]
[341214103,1730655040328,-500.0,0.00037897,2]
[341214104,1730655040337,-500.0,0.00037897,2]
[341214105,1730655040346,-500.0,0.00037897,2]
[341214106,1730655040356,-332.54,0.00037897,2]
[341214107,1730655040366,-11721.46,0.00037897,2]
[341214108,1730655040376,-500.0,0.00037897,2]
[341214109,1730655040385,-569.1438454,0.00037897,2]
[341214110,1730655040394,-500.0,0.00037897,2]
[341214111,1730655040404,-965.29,0.00037897,2]
[341214112,1730655040413,-500.0,0.00037897,2]
[341214113,1730655040422,-500.0,0.00037897,2]
[341214114,1730655040431,-500.0,0.00037897,2]
[341214115,1730655040442,-500.0,0.00037897,2]
[341214116,1730655040451,-500.0,0.00037897,2]
[341214117,1730655040460,-553.44409847,0.00037897,2]
[341214118,1730655040468,-500.0,0.00037897,2]
[341214119,1730655040478,-1551.1,0.00037897,2]
[341214120,1730655040487,-508.4063563,0.00037897,2]
[341214121,1730655040496,-500.0,0.00037897,2]
[341214122,1730655040505,-500.0,0.00037897,2]
[341214123,1730655040515,-500.0,0.00037897,2]
[341214124,1730655040524,-500.0,0.00037897,2]
[341214125,1730655040533,-500.0,0.00037897,2]
[341214126,1730655040542,-500.0,0.00037897,2]
[341214127,1730655040551,-500.0,0.00037897,2]
[341214128,1730655040560,-307.58242579,0.00037897,15]
[341214129,1730655040570,-500.0,0.00037897,2]
[341214130,1730655040579,-215.2475,0.00037898,2]
[341214131,1730655040588,-500.0,0.00037898,2]
[341214132,1730655040598,-500.0,0.00037898,2]
[341214133,1730655040607,-502.87694421,0.00037898,2]
[341214134,1730655040616,-500.0,0.00037898,2]
[341214135,1730655040626,-500.0,0.00037898,2]
[341214136,1730655040635,-503.49121685,0.00037898,2]
[341214137,1730655040646,-503.33106563,0.00037898,2]
[341214138,1730655040655,-500.0,0.00037898,2]
[341214139,1730655040664,-503.34398992,0.00037898,2]
[341214140,1730655040674,-509.18280734,0.00037898,2]
[341214141,1730655040683,-509.62565874,0.00037898,2]
[341214142,1730655040708,-500.0,0.00037898,2]
[341214143,1730655040717,-503.14617721,0.00037898,2]
[341214144,1730655040726,-500.0,0.00037898,2]
[341214145,1730655040735,-500.0,0.00037898,2]
[341214146,1730655040745,-502.40764986,0.00037898,2]
[341214147,1730655040754,-500.0,0.00037898,2]
[341214148,1730655040763,-500.0,0.00037898,2]
[341214149,1730655040772,-503.35832519,0.00037898,2]
[341214150,1730655040781,-500.0,0.00037898,2]
[341214151,1730655040790,-505.93108559,0.00037898,2]
[341214152,1730655040799,-567.43391662,0.00037898,2]
[341214153,1730655040808,-649.91182107,0.00037898,2]
[341214154,1730655040817,-500.0,0.00037898,2]
[341214155,1730655040827,-500.0,0.00037898,2]
[341214156,1730655040836,-458.35715858,0.00037898,2]
[341214157,1730655040845,-500.0,0.00037898,2]
[341214158,1730655040854,-506.25957862,0.00037898,2]
[341214159,1730655040863,-500.0,0.00037898,2]
[341214160,1730655040872,-450.85648081,0.00037898,2]
[341214161,1730655040881,-502.18992422,0.00037898,2]
[341214162,1730655040891,-605.50096615,0.00037898,2]
[341214163,1730655040900,-500.0,0.00037898,2]
[341214164,1730655040910,-219.75093234,0.00037898,2]
[341214165,1730655040919,-517.22133474,0.00037898,2]
[341214166,1730655040928,-500.0,0.00037898,2]
[341214167,1730655040937,-500.0,0.00037898,2]
[341214168,1730655040947,-452.99675101,0.00037898,2]
[341214169,1730655040956,-500.0,0.00037898,2]
[341214170,1730655040965,-527.04208336,0.00037898,2]
[341214171,1730655040974,-511.43613758,0.00037898,2]
[341214172,1730655040983,-510.75291725,0.00037898,2]
[341214173,1730655040992,-500.0,0.00037898,2]
[341214174,1730655041001,-585.53183094,0.00037898,2]
[341214175,1730655041010,-531.68057666,0.00037898,2]
[341214176,1730655041019,-500.0,0.00037898,2]
[341214177,1730655041029,-503.04325562,0.00037898,2]
[341214178,1730655041039,-510.28968958,0.00037898,2]
[341214179,1730655041049,-553.04194726,0.00037898,2]
[341214180,1730655041059,-516.4849009,0.00037898,2]
[341214181,1730655041070,-510.41072037,0.00037898,2]
[341214182,1730655041080,-562.97605301,0.00037898,2]
[341214183,1730655041089,-500.0,0.00037898,2]
[341214184,1730655041098,-500.0,0.00037898,2]
[341214185,1730655041107,-532.60383179,0.00037898,2]
[341214186,1730655041116,-500.0,0.00037898,2]
[341214187,1730655041125,-515.69319015,0.00037898,2]
[341214188,1730655041134,-500.0,0.00037898,2]
[341214189,1730655041144,-281.94974166,0.00037898,2]
[341214190,1730655041153,-500.0,0.00037898,2]
[341214191,1730655041162,-500.0,0.00037898,2]
[341214192,1730655041171,-283.23402091,0.00037898,2]
[341214193,1730655041180,-500.0,0.00037898,2]
[341214194,1730655041201,-500.0,0.00037898,2]
[341214195,1730655041210,-500.0,0.00037898,2]
[341214196,1730655041219,-539.37701894,0.00037898,2]
[341214197,1730655041230,-567.33409454,0.00037898,2]
[341214198,1730655041241,-500.0,0.00037898,2]
[341214199,1730655041250,-503.54176488,0.00037898,2]
[341214200,1730655041259,-633.74047283,0.00037898,2]
[341214201,1730655041269,-500.0,0.00037898,2]
[341214202,1730655041278,-500.0,0.00037898,2]
[341214203,1730655041287,-500.0,0.00037898,2]
[341214204,1730655041296,-502.92353765,0.00037898,2]
[341214205,1730655041306,-500.0,0.00037898,2]
[341214206,1730655041318,-551.25889442,0.00037898,2]
[341214207,1730655041327,-500.0,0.00037898,2]
[341214208,1730655041336,-500.0,0.00037898,2]
[341214209,1730655041345,-514.43687217,0.00037898,2]
[341214210,1730655041356,-531.09038184,0.00037898,2]
[341214211,1730655041365,-500.0,0.00037898,2]
[341214212,1730655041374,-530.24094325,0.00037898,2]
[341214213,1730655041384,-500.0,0.00037898,2]
[341214214,1730655041393,-500.0,0.00037898,2]
[341214215,1730655041402,-500.0,0.00037898,2]
[341214216,1730655041412,-503.06180578,0.00037898,2]
[341214217,1730655041421,-549.49812117,0.00037898,2]
[341214218,1730655041430,-550.83994218,0.00037898,2]
[341214219,1730655041448,-500.0,0.00037898,2]
[341214220,1730655041458,-512.61869688,0.00037898,2]
[341214221,1730655041467,-500.0,0.00037898,2]
[341214222,1730655041476,-500.0,0.00037898,2]
[341214223,1730655041486,-500.0,0.00037898,2]
[341214224,1730655041495,-578.97001408,0.00037898,2]
[341214225,1730655041504,-535.98507585,0.00037898,2]
[341214226,1730655041513,-500.0,0.00037898,2]
[341214227,1730655041522,-500.0,0.00037898,2]
[341214228,1730655041531,-512.02742606,0.00037898,2]
[341214229,1730655041541,-499.99696974,0.00037898,2]
[341214230,1730655041551,-500.0,0.00037898,2]
[341214231,1730655041560,-508.52166646,0.00037898,2]
[341214232,1730655041569,-500.0,0.00037898,2]
[341214233,1730655041578,-500.0,0.00037898,2]
[341214234,1730655041588,-615.59452794,0.00037898,2]
[341214235,1730655041597,-506.0238127,0.00037898,2]
[341214236,1730655041606,-500.0,0.00037898,2]
[341214237,1730655041616,-512.95287926,0.00037898,2]
[341214238,1730655041625,-576.3796344,0.00037898,2]
[341214239,1730655041634,-500.0,0.00037898,2]
[341214240,1730655041644,-596.5289345,0.00037898,2]
[341214241,1730655041653,-500.0,0.00037898,2]
[341214242,1730655041662,-500.0,0.00037898,2]
[341214243,1730655041671,-506.24882677,0.00037898,2]
[341214244,1730655041681,-500.0,0.00037898,2]
[341214245,1730655041696,-500.0,0.00037898,2]
[341214246,1730655041705,-500.0,0.00037898,2]
[341214247,1730655041715,-500.0,0.00037898,2]
[341214248,1730655041724,-509.90160645,0.00037898,2]
[341214249,1730655041733,-522.33983822,0.00037898,2]
[341214250,1730655041743,-500.0,0.00037898,2]
[341214251,1730655041752,-500.0,0.00037898,2]
[341214252,1730655041761,-525.24856003,0.00037898,2]
[341214253,1730655041771,-500.0,0.00037898,2]
[341214254,1730655041780,-500.0,0.00037898,2]
[341214255,1730655041790,-500.0,0.00037898,2]
[341214256,1730655041799,-500.0,0.00037898,2]
[341214257,1730655041808,-500.0,0.00037898,2]
[341214258,1730655041817,-500.0,0.00037898,2]
[341214259,1730655041827,-500.0,0.00037898,2]
[341214260,1730655041836,-500.0,0.00037898,2]
[341214261,1730655041845,-308.540407,0.00037898,2]
[341214262,1730655041854,-2000.0,0.00037898,2]
[341214263,1730655041864,-500.0,0.00037898,2]
[341214264,1730655041873,-643.71719029,0.00037898,2]
[341214265,1730655042008,-500.0,0.00037898,2]
[341214266,1730655042018,-200.0,0.00037898,2]
[341214267,1730655042028,-500.0,0.00037898,2]
[341214268,1730655042037,-511.58122221,0.00037898,2]
[341214269,1730655042047,-500.0,0.00037898,2]
[341214270,1730655042056,-511.445806,0.00037898,2]
[341214271,1730655042066,-151.0,0.00037898,7]
[341214272,1730655042075,-500.0,0.00037898,2]
[341214273,1730655042084,-538.63359323,0.00037898,2]